fUSD/lending_fUSD_20240420
["ID","MTS","AMOUNT","RATE_DAILY","PERIOD"]
[323015746,1713589180964,-207.70305494,0.00011333,2]
[323015747,1713589180988,-161.45924312,0.00011333,2]
[323015748,1713589181009,-378.89764759,0.00011334,2]
[323015749,1713589181031,-150.0,0.000115,2]
[323015750,1713589181052,-300.0,0.000115,2]
[323015751,1713589181074,-150.0,0.000115,2]
[323015752,1713589181095,-4727.62770514,0.00011503,2]
[323015753,1713589181116,-2090.34,0.00011664,2]
[323015754,1713589181137,-155.0,0.00011831,2]
[323015755,1713589181158,-1820.80388649,0.000119,2]
[323015756,1713589181198,343.22721767,0.00011229,2]
[323015757,1713589182302,404.63791958,0.00011229,2]
[323015758,1713589182839,1994.15387109,0.00011229,2]
[323015765,1713589268455,615.27,0.0001074,2]
[323015768,1713589591239,-162.89104757,0.0001207,2]
[323015769,1713589591261,-207.70305494,0.00012071,2]
[323015770,1713589591283,-162.89104757,0.00012072,2]
[323015771,1713589591306,-313.67030526,0.00012073,2]
[323015772,1713589591328,-210.53465711,0.00012073,2]
[323015773,1713589591348,-155.0,0.00012073,2]
[323015774,1713589591371,-155.0,0.00012073,2]
[323015775,1713589591395,-155.0,0.00012073,2]
[323015776,1713589591418,-155.0,0.00012073,2]
[323015777,1713589591440,-262.19707218,0.00012074,2]
[323015778,1713589591461,-161.45924312,0.00012074,2]
[323015779,1713589591483,-404.63791958,0.00012074,2]
[323015780,1713589591504,-1128.24549352,0.00012074,2]
[323015781,1713589591525,-202.26348816,0.00012075,2]
[323015782,1713589591547,-1783.17554806,0.00012081,2]
[323015783,1713589591568,-2540.35536187,0.00012083,2]
[323015784,1713589591589,-200.0,0.00012359,2]
[323015785,1713589591613,-164.5,0.0001238,2]
[323015786,1713589591634,-250.0,0.00012419,2]
[323015787,1713589591655,-23900.0,0.00012431,2]
[323015788,1713589591677,-2971.75,0.00012431,2]
[323015789,1713589591698,-3153.81,0.00012444,2]
[323015790,1713589591721,-1390.64,0.00012444,2]
[323015791,1713589591743,-234.58,0.00012465,2]
[323015792,1713589591764,-177.6,0.00012525,2]
[323015793,1713589591785,-243.4,0.00012541,2]
[323015794,1713589591806,-3110.68,0.00012561,2]
[323015795,1713589591827,-150.0,0.00012588,2]
[323015796,1713589591848,-501.74,0.00012642,2]
[323015797,1713589591869,-1000.0,0.00012655,2]
[323015798,1713589591890,-499.99,0.00012655,2]
[323015799,1713589591913,-356.18,0.00012656,2]
[323015800,1713589591935,-2691.46,0.00012656,2]
[323015801,1713589591957,-999.99,0.00012656,2]
[323015802,1713589591979,-201.36,0.00012656,2]
[323015803,1713589592002,-356.18,0.0001269,2]
[323015804,1713589592025,-356.18,0.00012725,2]
[323015805,1713589592047,-356.18,0.0001276,2]
[323015806,1713589592069,-356.18,0.00012794,2]
[323015807,1713589592092,-356.18,0.00012829,2]
[323015808,1713589592114,-356.18,0.00012864,2]
[323015809,1713589592135,-188.24559408,0.00012888,2]
[323015810,1713589592157,-356.18,0.00012899,2]
[323015811,1713589592181,-356.18,0.00012933,2]
[323015812,1713589592204,-356.18,0.00012968,2]
[323015813,1713589592227,-356.18,0.00013003,2]
[323015814,1713589592249,-615.27,0.00013004,2]
[323015815,1713589592272,-356.18,0.00013037,2]
[323015816,1713589592294,-356.18,0.00013072,2]
[323015817,1713589592316,-356.18,0.00013107,2]
[323015818,1713589592339,-356.18,0.00013142,2]
[323015819,1713589592361,-356.18,0.00013176,2]
[323015820,1713589592386,-356.18,0.00013211,2]
[323015821,1713589592408,-153.76,0.00013215,2]
[323015822,1713589592431,-153.76,0.0001322,2]
[323015823,1713589592454,-153.76,0.00013225,2]
[323015824,1713589592475,-153.76,0.00013229,2]
[323015825,1713589592499,-153.76,0.00013234,2]
[323015826,1713589592522,-153.76,0.00013239,2]
[323015827,1713589592544,-153.76,0.00013244,2]
[323015828,1713589592566,-356.18,0.00013246,2]
[323015829,1713589592587,-153.76,0.00013248,2]
[323015830,1713589592611,-153.76,0.00013253,2]
[323015831,1713589592632,-153.76,0.00013258,2]
[323015832,1713589592654,-153.76,0.00013262,2]
[323015833,1713589592674,-153.76,0.00013267,2]
[323015834,1713589592695,-153.76,0.00013272,2]
[323015835,1713589592716,-153.76,0.00013277,2]
[323015836,1713589592738,-356.18,0.0001328,2]
[323015837,1713589592759,-153.76,0.00013281,2]
[323015838,1713589592782,-356.18,0.00013315,2]
[323015839,1713589592804,-490.8,0.00013699,2]
[323015840,1713589592826,-843.37153382,0.000137,2]
[323015841,1713589592848,-1000.0,0.00014237,2]
[323015842,1713589592872,-405.308708,0.00014247,2]
[323015843,1713589592893,-382.54349145,0.00014248,2]
[323015844,1713589592914,-543.0,0.0001463,2]
[323015845,1713589592937,-264.0,0.00014657,2]
[323015846,1713589592959,-2352.13843842,0.000148,2]
[323015847,1713589592980,-16326.793,0.00014847,2]
[323015848,1713589593002,-1890.8456,0.00014868,2]
[323015849,1713589593023,-10560.43713535,0.00014966,2]
[323015850,1713589593045,-2214.12688215,0.00014966,2]
[323015851,1713589593066,-2183.86104697,0.00014966,2]
[323015852,1713589593087,-1244.72929117,0.00014966,2]
[323015853,1713589593109,-10000.0,0.00014968,2]
[323015854,1713589593132,-54149.951,0.00014968,2]
[323015855,1713589593154,-821.70639353,0.00014968,2]
[323015856,1713589593176,-155.87,0.0001499,2]
[323015857,1713589593197,-323.74212298,0.00014998,2]
[323015858,1713589593218,-4330.05700395,0.00014998,2]
[323015859,1713589593245,-721.10660169,0.00014998,2]
[323015860,1713589593268,-2353.32137406,0.00014998,2]
[323015861,1713589593291,-594.4950471,0.00014998,2]
[323015862,1713589593313,-344.00434686,0.00014998,2]
[323015863,1713589593337,-375.52625505,0.00014998,2]
[323015864,1713589593359,-301.02447591,0.00014999,2]
[323015865,1713589593385,-19548.12171403,0.00014999,2]
[323015878,1713589647548,154.67,0.0001611,15]
[323015896,1713589832047,-325.59234872,0.0001152,2]
[323015897,1713589832058,-177.6,0.00011521,2]
[323015898,1713589832068,-140.40679149,0.00012083,2]
[323015899,1713589832080,-1015.83173565,0.00012083,2]
[323015900,1713589832093,-963.675,0.00012083,2]
[323015901,1713589832105,-420.44183473,0.00012083,2]
[323015902,1713589832116,-1128.24549352,0.00014075,2]
[323015903,1713589832125,-207.70305494,0.00014076,2]
[323015904,1713589832135,-404.63791958,0.00014076,2]
[323015905,1713589832144,-155.0,0.00014076,2]
[323015906,1713589832154,-166.301638,0.00014077,2]
[323015907,1713589832163,-245.4,0.0001418,2]
[323015908,1713589832174,-150.0,0.00014277,2]
[323015909,1713589832183,-186.0,0.00014402,2]
[323015910,1713589832192,-150.0,0.00014453,2]
[323015911,1713589832201,-150.0,0.00014629,2]
[323015912,1713589832211,-521.0,0.00014658,2]
[323015913,1713589832221,-150.0,0.00014805,2]
[323015914,1713589832230,-150.0,0.00014982,2]
[323015915,1713589832239,-314.33349073,0.00014998,2]
[323015916,1713589832249,-262.76801381,0.00014998,2]
[323015917,1713589832258,-161.02195853,0.00014998,2]
[323015918,1713589832268,-203.17728806,0.00014998,2]
[323015919,1713589832277,-213.35637117,0.00014998,2]
[323015921,1713589832286,-155.33180907,0.00014998,2]
[323015922,1713589832295,-3775.34001016,0.00014999,2]
[323015925,1713589832304,-193.15612007,0.00014999,2]
[323015926,1713589832314,-155.74912433,0.00014999,2]
[323015927,1713589832325,-2034.0741189,0.00015,2]
[323015928,1713589832337,-341.48088377,0.00015,2]
[323015930,1713589832348,-1290.90309334,0.00015,2]
[323015931,1713589832406,-659.47,0.00015,2]
[323015934,1713589832419,-674.07190399,0.00015,2]
[323015936,1713589832430,-11702.77750623,0.00015,2]
[323015944,1713589832589,-71302.23769439,0.00015,2]
[323015945,1713589832599,-19453.22092378,0.00015,2]
[323015946,1713589832608,-155.87,0.00015058,2]
[323015947,1713589832617,-3757.10768433,0.00015066,2]
[323015948,1713589832626,-4787.61029515,0.00015067,2]
[323015949,1713589832635,-599.85,0.00015068,2]
[323015950,1713589832645,-500.0,0.00015068,2]
[323015951,1713589832654,-500.0,0.00015068,2]
[323015952,1713589832662,-500.0,0.00015068,2]
[323015953,1713589832671,-678.97,0.00015068,2]
[323015954,1713589832681,-500.0,0.00015068,2]
[323015955,1713589832690,-500.0,0.00015068,2]
[323015956,1713589832700,-500.0,0.00015068,2]
[323015957,1713589832709,-500.0,0.00015068,2]
[323015958,1713589832718,-500.0,0.00015068,2]
[323015959,1713589832727,-500.0,0.00015068,2]
[323015960,1713589832737,-500.0,0.00015068,2]
[323015961,1713589832746,-153.72435946,0.00015068,2]
[323015962,1713589832756,-727.47,0.00015068,2]
[323015963,1713589832765,-500.0,0.00015068,2]
[323015964,1713589832774,-500.0,0.00015068,2]
[323015965,1713589832784,-500.0,0.00015068,2]
[323015966,1713589832793,-500.0,0.00015068,2]
[323015967,1713589832802,-500.0,0.00015068,2]
[323015968,1713589832811,-500.0,0.00015068,2]
[323015969,1713589832822,-500.0,0.00015068,2]
[323015970,1713589832832,-500.0,0.00015068,2]
[323015971,1713589832842,-500.0,0.00015068,2]
[323015972,1713589832854,-968.92,0.00015068,2]
[323015973,1713589832864,-607.73,0.00015068,2]
[323015974,1713589832873,-500.0,0.00015068,2]
[323015975,1713589832883,-500.0,0.00015068,2]
[323015976,1713589832892,-500.0,0.00015068,2]
[323015977,1713589832903,-500.0,0.00015068,2]
[323015978,1713589832914,-500.0,0.00015068,2]
[323015979,1713589832924,-500.0,0.00015068,2]
[323015980,1713589832936,-500.0,0.00015068,2]
[323015981,1713589832946,-500.0,0.00015068,2]
[323015982,1713589832955,-500.0,0.00015068,2]
[323015983,1713589832965,-500.0,0.00015068,2]
[323015984,1713589832974,-500.0,0.00015068,2]
[323015985,1713589832985,-500.0,0.00015068,2]
[323015986,1713589832994,-106.7929912,0.00015068,2]
[323015987,1713589833062,-393.2070088,0.00015068,2]
[323015988,1713589833073,-440.59092436,0.00015068,2]
[323015989,1713589833084,-59.40907564,0.00015068,2]
[323015990,1713589833093,-259.45782422,0.00015068,2]
[323015991,1713589833105,-240.54217578,0.00015068,2]
[323015992,1713589833114,-500.0,0.00015068,2]
[323015993,1713589833123,-500.0,0.00015068,2]
[323015994,1713589833133,-500.0,0.00015068,2]
[323015995,1713589833141,-500.0,0.00015068,2]
[323015996,1713589833151,-445.43364358,0.00015068,2]
[323015997,1713589833162,-54.56635642,0.00015068,2]
[323015998,1713589833172,-199.35606146,0.00015068,2]
[323015999,1713589833494,-300.64393854,0.00015068,2]
[323016000,1713589833505,-500.0,0.00015068,2]
[323016001,1713589833514,-500.0,0.00015068,2]
[323016002,1713589833523,-500.0,0.00015068,2]
[323016003,1713589833533,-500.0,0.00015068,2]
[323016004,1713589833543,-753.79,0.00015068,2]
[323016005,1713589833553,-310.04296556,0.00015068,2]
[323016006,1713589833562,-500.0,0.00015068,2]
[323016007,1713589833573,-500.0,0.00015068,2]
[323016008,1713589833582,-500.0,0.00015068,2]
[323016009,1713589833592,-503.20436968,0.00015068,2]
[323016010,1713589833601,-164.56351619,0.00015068,2]
[323016011,1713589833680,-308.807424,0.00015068,2]
[323016012,1713589833693,-82.96905981,0.00015068,2]
[323016013,1713589833702,-234.68094019,0.00015068,2]
[323016014,1713589833714,-265.31905981,0.00015068,2]
[323016015,1713589833723,-43.99128066,0.00015068,2]
[323016016,1713589833742,-299.66504719,0.00015068,2]
[323016017,1713589833753,-156.34367215,0.00015068,2]
[323016018,1713589833763,-500.0,0.00015068,2]
[323016019,1713589833772,-500.0,0.00015068,2]
[323016020,1713589833781,-741.02,0.00015068,2]
[323016021,1713589833791,-500.0,0.00015068,2]
[323016022,1713589833800,-500.0,0.00015068,2]
[323016023,1713589833810,-500.0,0.00015068,2]
[323016024,1713589833821,-500.0,0.00015068,2]
[323016025,1713589833831,-518.6,0.00015068,2]
[323016026,1713589833840,-500.0,0.00015068,2]
[323016027,1713589833849,-500.0,0.00015068,2]
[323016028,1713589833858,-500.0,0.00015068,2]
[323016029,1713589833868,-678.27,0.00015068,2]
[323016030,1713589833878,-500.0,0.00015068,2]
[323016031,1713589833887,-500.0,0.00015068,2]
[323016032,1713589833896,-500.0,0.00015068,2]
[323016033,1713589833905,-500.0,0.00015068,2]
[323016034,1713589833914,-587.99397457,0.00015068,2]
[323016035,1713589833924,-500.0,0.00015068,2]
[323016036,1713589833933,-531.34,0.00015068,2]
[323016037,1713589833943,-504.29213146,0.00015068,2]
[323016038,1713589833953,-616.37,0.00015068,2]
[323016039,1713589833963,-500.0,0.00015068,2]
[323016040,1713589833972,-500.0,0.00015068,2]
[323016041,1713589833982,-500.0,0.00015068,2]
[323016042,1713589833992,-500.0,0.00015068,2]
[323016043,1713589834002,-500.0,0.00015068,2]
[323016044,1713589834011,-500.0,0.00015068,2]
[323016045,1713589834021,-500.0,0.00015068,2]
[323016046,1713589834030,-500.0,0.00015068,2]
[323016047,1713589834039,-500.0,0.00015068,2]
[323016048,1713589834048,-500.0,0.00015068,2]
[323016049,1713589834058,-500.0,0.00015068,2]
[323016050,1713589834069,-500.0,0.00015068,2]
[323016051,1713589834080,-500.65,0.00015068,2]
[323016052,1713589834090,-500.0,0.00015068,2]
[323016053,1713589834100,-500.0,0.00015068,2]
[323016054,1713589834111,-500.0,0.00015068,2]
[323016055,1713589834122,-975.09,0.00015068,2]
[323016056,1713589834132,-500.0,0.00015068,2]
[323016057,1713589834142,-518.24427123,0.00015068,2]
[323016058,1713589834152,-500.0,0.00015068,2]
[323016059,1713589834163,-500.0,0.00015068,2]
[323016060,1713589834175,-729.5,0.00015068,2]
[323016061,1713589834185,-500.0,0.00015068,2]
[323016062,1713589834195,-500.0,0.00015068,2]
[323016063,1713589834205,-500.0,0.00015068,2]
[323016064,1713589834214,-500.0,0.00015068,2]
[323016065,1713589834223,-545.03,0.00015068,2]
[323016066,1713589834234,-884.69,0.00015068,2]
[323016067,1713589834243,-500.0,0.00015068,2]
[323016068,1713589834253,-500.0,0.00015068,2]
[323016069,1713589834262,-500.0,0.00015068,2]
[323016070,1713589834272,-628.5,0.00015068,2]
[323016071,1713589834281,-549.37,0.00015068,2]
[323016072,1713589834291,-604.24,0.00015068,2]
[323016073,1713589834300,-606.42,0.00015068,2]
[323016074,1713589834310,-567.38438379,0.00015068,2]
[323016075,1713589834321,-638.18,0.00015068,2]
[323016076,1713589834330,-624.36,0.00015068,2]
[323016077,1713589834339,-526.26,0.00015068,2]
[323016078,1713589834348,-500.0,0.00015068,2]
[323016079,1713589834358,-500.0,0.00015068,2]
[323016080,1713589834367,-887.14,0.00015068,2]
[323016081,1713589834376,-500.0,0.00015068,2]
[323016082,1713589834385,-514.89,0.00015068,2]
[323016083,1713589834395,-500.0,0.00015068,2]
[323016084,1713589834404,-500.0,0.00015068,2]
[323016085,1713589834414,-500.0,0.00015068,2]
[323016086,1713589834423,-500.0,0.00015068,2]
[323016087,1713589834432,-513.14,0.00015068,2]
[323016088,1713589834441,-500.0,0.00015068,2]
[323016089,1713589834451,-500.0,0.00015068,2]
[323016090,1713589834464,-500.0,0.00015068,2]
[323016091,1713589834474,-629.27,0.00015068,2]
[323016092,1713589834483,-500.0,0.00015068,2]
[323016093,1713589834494,-500.0,0.00015068,2]
[323016094,1713589834504,-500.0,0.00015068,2]
[323016095,1713589834515,-500.0,0.00015068,2]
[323016096,1713589834525,-500.0,0.00015068,2]
[323016097,1713589834536,-500.0,0.00015068,2]
[323016098,1713589834546,-632.63,0.00015068,2]
[323016099,1713589834555,-500.0,0.00015068,2]
[323016100,1713589834565,-677.03,0.00015068,2]
[323016101,1713589834575,-511.58,0.00015068,2]
[323016102,1713589834584,-500.0,0.00015068,2]
[323016103,1713589834594,-538.98,0.00015068,2]
[323016104,1713589834604,-500.0,0.00015068,2]
[323016105,1713589834613,-305.512801,0.00015068,2]
[323016106,1713589834623,-100.17374224,0.00015068,2]
[323016107,1713589834640,-442.10625776,0.00015068,2]
[323016108,1713589834650,-27.52895779,0.00015068,2]
[323016131,1713589838172,-472.47104221,0.00015068,2]
[323016132,1713589838184,-500.0,0.00015068,2]
[323016133,1713589838193,-500.0,0.00015068,2]
[323016134,1713589838203,-500.0,0.00015068,2]
[323016135,1713589838212,-500.0,0.00015068,2]
[323016136,1713589838221,-500.0,0.00015068,2]
[323016137,1713589838230,-500.0,0.00015068,2]
[323016138,1713589838239,-500.0,0.00015068,2]
[323016139,1713589838249,-500.0,0.00015068,2]
[323016140,1713589838258,-500.0,0.00015068,2]
[323016141,1713589838269,-500.0,0.00015068,2]
[323016142,1713589838278,-500.0,0.00015068,2]
[323016143,1713589838287,-892.68,0.00015068,2]
[323016144,1713589838296,-500.0,0.00015068,2]
[323016145,1713589838305,-500.0,0.00015068,2]
[323016146,1713589838314,-559.21,0.00015068,2]
[323016147,1713589838323,-705.29,0.00015068,2]
[323016148,1713589838333,-500.0,0.00015068,2]
[323016149,1713589838342,-1055.89,0.00015068,2]
[323016150,1713589838351,-500.0,0.00015068,2]
[323016151,1713589838360,-505.63426721,0.00015068,2]
[323016152,1713589838369,-500.0,0.00015068,2]
[323016153,1713589838378,-929.09,0.00015068,2]
[323016154,1713589838387,-500.0,0.00015068,2]
[323016155,1713589838396,-500.0,0.00015068,2]
[323016156,1713589838406,-500.0,0.00015068,2]
[323016158,1713589838415,-500.0,0.00015068,2]
[323016160,1713589838425,-500.0,0.00015068,2]
[323016161,1713589838434,-547.29,0.00015068,2]
[323016162,1713589838444,-500.0,0.00015068,2]
[323016163,1713589838457,-500.0,0.00015068,2]
[323016164,1713589838467,-500.0,0.00015068,2]
[323016165,1713589838477,-500.0,0.00015068,2]
[323016166,1713589838486,-500.0,0.00015068,2]
[323016167,1713589838495,-500.0,0.00015068,2]
[323016168,1713589838504,-500.0,0.00015068,2]
[323016169,1713589838513,-258.37449766,0.00015068,2]
[323016170,1713589838523,-526.2,0.00015068,2]
[323016171,1713589838533,-500.0,0.00015068,2]
[323016172,1713589838543,-500.0,0.00015068,2]
[323016173,1713589838552,-500.0,0.00015068,2]
[323016174,1713589838561,-812.79,0.00015068,2]
[323016175,1713589838571,-803.13,0.00015068,2]
[323016176,1713589838580,-500.0,0.00015068,2]
[323016177,1713589838590,-525.13,0.00015068,2]
[323016178,1713589838600,-656.31,0.00015068,2]
[323016179,1713589838609,-643.74,0.00015068,2]
[323016180,1713589838618,-500.42170528,0.00015068,2]
[323016181,1713589838627,-848.26,0.00015068,2]
[323016182,1713589838637,-500.0,0.00015068,2]
[323016183,1713589838648,-575.42,0.00015068,2]
[323016184,1713589838659,-364.39592169,0.00015068,2]
[323016185,1713589838670,-500.0,0.00015068,2]
[323016186,1713589838679,-712.36,0.00015068,2]
[323016187,1713589838689,-799.04,0.00015068,2]
[323016188,1713589838700,-649.55,0.00015068,2]
[323016189,1713589838709,-500.0,0.00015068,2]
[323016190,1713589838718,-470.0,0.00015068,2]
[323016191,1713589838727,-511.88,0.00015068,2]
[323016192,1713589838736,-1115.38016502,0.00015068,2]
[323016193,1713589838760,-2.77983498,0.00015068,2]
[323016194,1713589838769,-500.0,0.00015068,2]
[323016195,1713589838781,-782.91,0.00015068,2]
[323016196,1713589838792,-500.0,0.00015068,2]
[323016197,1713589838802,-500.0,0.00015068,2]
[323016198,1713589838812,-500.0,0.00015068,2]
[323016199,1713589838823,-500.0,0.00015068,2]
[323016200,1713589838832,-500.0,0.00015068,2]
[323016201,1713589838844,-500.0,0.00015068,2]
[323016202,1713589838853,-671.67,0.00015068,2]
[323016203,1713589838863,-500.0,0.00015068,2]
[323016204,1713589838872,-500.0,0.00015068,2]
[323016205,1713589838881,-501.59,0.00015068,2]
[323016206,1713589838890,-592.94,0.00015068,2]
[323016207,1713589838899,-500.0,0.00015068,2]
[323016208,1713589838908,-1489.68,0.00015068,2]
[323016209,1713589838917,-500.0,0.00015068,2]
[323016210,1713589838927,-500.0,0.00015068,2]
[323016211,1713589838936,-500.0,0.00015068,2]
[323016212,1713589838945,-500.0,0.00015068,2]
[323016213,1713589838954,-500.0,0.00015068,2]
[323016214,1713589838963,-500.0,0.00015068,2]
[323016215,1713589838973,-500.0,0.00015068,2]
[323016216,1713589838983,-489.65370128,0.00015068,2]
[323016217,1713589838993,-753.63,0.00015068,2]
[323016218,1713589839004,-500.0,0.00015068,2]
[323016219,1713589839016,-500.0,0.00015068,2]
[323016220,1713589839027,-500.0,0.00015068,2]
[323016221,1713589839038,-500.0,0.00015068,2]
[323016222,1713589839049,-500.0,0.00015068,2]
[323016223,1713589839060,-500.0,0.00015068,2]
[323016224,1713589839070,-500.0,0.00015068,2]
[323016225,1713589839080,-500.0,0.00015068,2]
[323016226,1713589839089,-500.0,0.00015068,2]
[323016227,1713589839098,-292.44462296,0.00015068,2]
[323016228,1713589839111,-422.40537704,0.00015068,2]
[323016229,1713589839120,-557.85,0.00015068,2]
[323016230,1713589839129,-500.0,0.00015068,2]
[323016231,1713589839138,-500.0,0.00015068,2]
[323016232,1713589839146,-500.0,0.00015068,2]
[323016233,1713589839156,-565.29,0.00015068,2]
[323016234,1713589839164,-500.0,0.00015068,2]
[323016235,1713589839174,-500.0,0.00015068,2]
[323016236,1713589839183,-500.0,0.00015068,2]
[323016237,1713589839192,-500.0,0.00015068,2]
[323016238,1713589839202,-500.0,0.00015068,2]
[323016239,1713589839211,-500.0,0.00015068,2]
[323016240,1713589839220,-500.0,0.00015068,2]
[323016241,1713589839229,-468.45405984,0.00015068,2]
[323016242,1713589839263,-31.54594016,0.00015068,2]
[323016243,1713589839272,-566.41,0.00015068,2]
[323016244,1713589839281,-606.52,0.00015068,2]
[323016245,1713589839290,-500.0,0.00015068,2]
[323016246,1713589839299,-588.95,0.00015068,2]
[323016247,1713589839308,-500.0,0.00015068,2]
[323016248,1713589839318,-500.0,0.00015068,2]
[323016249,1713589839328,-731.63,0.00015068,2]
[323016250,1713589839337,-759.91,0.00015068,2]
[323016251,1713589839346,-500.0,0.00015068,2]
[323016252,1713589839355,-500.0,0.00015068,2]
[323016253,1713589839364,-500.0,0.00015068,2]
[323016254,1713589839373,-632.51,0.00015068,2]
[323016255,1713589839382,-159.48894749,0.00015068,2]
[323016256,1713589839394,-269.3759457,0.00015068,2]
[323016257,1713589839402,-393.43620425,0.00015068,2]
[323016258,1713589839414,-193.18379575,0.00015068,2]
[323016259,1713589839422,-500.0,0.00015068,2]
[323016260,1713589839431,-835.59,0.00015068,2]
[323016261,1713589839440,-500.0,0.00015068,2]
[323016262,1713589839450,-500.0,0.00015068,2]
[323016263,1713589839462,-500.0,0.00015068,2]
[323016264,1713589839472,-1472.83,0.00015068,2]
[323016265,1713589839481,-500.0,0.00015068,2]
[323016266,1713589839490,-500.0,0.00015068,2]
[323016267,1713589839500,-500.0,0.00015068,2]
[323016268,1713589839510,-500.0,0.00015068,2]
[323016269,1713589839519,-500.0,0.00015068,2]
[323016270,1713589839531,-502.59,0.00015068,2]
[323016271,1713589839541,-500.0,0.00015068,2]
[323016272,1713589839550,-500.0,0.00015068,2]
[323016273,1713589839560,-500.0,0.00015068,2]
[323016274,1713589839570,-500.0,0.00015068,2]
[323016275,1713589839580,-500.0,0.00015068,2]
[323016276,1713589839590,-500.0,0.00015068,2]
[323016277,1713589839599,-500.0,0.00015068,2]
[323016278,1713589839608,-720.39,0.00015068,2]
[323016279,1713589839617,-718.72,0.00015068,2]
[323016280,1713589839628,-1084.78,0.00015068,2]
[323016281,1713589839638,-500.0,0.00015068,2]
[323016282,1713589839647,-960.62,0.00015068,2]
[323016283,1713589839656,-500.0,0.00015068,2]
[323016284,1713589839667,-500.0,0.00015068,2]
[323016285,1713589839676,-500.0,0.00015068,2]
[323016286,1713589839685,-500.0,0.00015068,2]
[323016287,1713589839694,-500.0,0.00015068,2]
[323016288,1713589839703,-68.98438386,0.00015068,2]
[323016289,1713589839784,-431.01561614,0.00015068,2]
[323016290,1713589839832,-501.27755509,0.00015068,2]
[323016291,1713589839843,-791.96,0.00015068,2]
[323016292,1713589839854,-500.0,0.00015068,2]
[323016293,1713589839864,-1011.21,0.00015068,2]
[323016294,1713589839874,-500.0,0.00015068,2]
[323016295,1713589839884,-500.0,0.00015068,2]
[323016296,1713589839893,-500.0,0.00015068,2]
[323016297,1713589839902,-500.0,0.00015068,2]
[323016298,1713589839911,-500.0,0.00015068,2]
[323016299,1713589839920,-1592.76,0.00015068,2]
[323016300,1713589839929,-561.26694822,0.00015068,2]
[323016301,1713589839939,-602.69,0.00015068,2]
[323016302,1713589839948,-500.0,0.00015068,2]
[323016303,1713589839957,-500.0,0.00015068,2]
[323016304,1713589839967,-500.0,0.00015068,2]
[323016305,1713589839977,-500.0,0.00015068,2]
[323016306,1713589839987,-514.2,0.00015068,2]
[323016307,1713589839996,-500.0,0.00015068,2]
[323016308,1713589840005,-1128.31,0.00015068,2]
[323016309,1713589840014,-1023.3,0.00015068,2]
[323016310,1713589840023,-500.0,0.00015068,2]
[323016311,1713589840032,-500.0,0.00015068,2]
[323016312,1713589840041,-544.45,0.00015068,2]
[323016313,1713589840050,-500.0,0.00015068,2]
[323016314,1713589840059,-978.84,0.00015068,2]
[323016315,1713589840068,-500.0,0.00015068,2]
[323016316,1713589840078,-234.61328748,0.00015068,2]
[323016317,1713589840154,-265.38671252,0.00015068,2]
[323016318,1713589840163,-720.87,0.00015068,2]
[323016319,1713589840174,-365.48860165,0.00015068,2]
[323016320,1713589840185,-673.51,0.00015068,2]